bitfinex-derivatives/quotes_ETHF0:USTF0_20250320
["timestamp","ask_amount","ask_price","bid_price","bid_amount"]
[1742437123490,4.72595,2025.5,2025.4,0.78979]
[1742437123789,1.44495,2025.5,2025.4,0.78979]
[1742437124291,0.6552,2025.5,2025.4,0.78979]
[1742437124483,3.2078,2025.6,2025.5,0.78975]
[1742437124676,3.99751,2025.6,2025.5,0.78975]
[1742437125588,3.2078,2025.6,2025.5,0.78975]
[1742437126690,5.27111,2025.6,2025.5,0.78975]
[1742437127390,4.4814,2025.6,2025.5,2.13845]
[1742437129093,5.27111,2025.6,2025.5,2.13845]
[1742437129497,4.4814,2025.6,2025.5,2.13845]
[1742437130893,3.2078,2025.6,2025.5,2.13845]
[1742437133092,3.99751,2025.6,2025.5,1.3487]
[1742437133291,0.78975,2025.5,2025.4,3.281]
[1742437133495,2.10475,2025.5,2025.4,3.281]
[1742437134394,2.10475,2025.5,2025.4,4.07079]
[1742437134600,1.315,2025.5,2025.4,4.07079]
[1742437134791,2.10475,2025.5,2025.4,4.07079]
[1742437135198,2.10475,2025.5,2025.4,3.281]
[1742437136093,2.10475,2025.5,2025.4,4.07079]
[1742437138999,2.10475,2025.5,2025.4,3.281]
[1742437139692,2.10475,2025.5,2025.4,4.5771]
[1742437139897,2.10475,2025.5,2025.4,5.36689]
[1742437140508,4.70096807,2025.7,2025.6,0.78971]
[1742437140700,0.78971,2025.6,2025.5,2.12142]
[1742437140897,2.19491,2025.6,2025.5,2.12142]
[1742437141096,2.19491,2025.6,2025.5,1.3317]
[1742437143103,2.19491,2025.6,2025.5,2.12145]
[1742437143906,2.19491,2025.6,2025.5,2.77355]
[1742437144307,1.4052,2025.6,2025.5,2.77355]
[1742437144705,2.19491,2025.6,2025.5,2.77355]
[1742437145097,1.4052,2025.6,2025.5,2.77355]
[1742437145299,2.19491,2025.6,2025.5,2.77355]
[1742437146902,1.4052,2025.6,2025.5,2.77355]
[1742437147611,3.21518807,2025.7,2025.6,0.78971]
[1742437147913,3.21518807,2025.7,2025.6,2.76941]
[1742437148105,3.21518807,2025.7,2025.6,6.05041]
[1742437148505,3.21518807,2025.7,2025.6,8.55041]
[1742437148810,3.21518807,2025.7,2025.6,9.22472641]
[1742437149206,3.21518807,2025.7,2025.6,50.42270181]
[1742437149410,3.21518807,2025.7,2025.6,50.02472641]
[1742437149604,3.2078,2026.3,2026.1,0.78952]
[1742437149810,1.3226,2026.2,2026.0,4.07054]
[1742437150107,2.11208,2026.2,2026.1,0.6999]
[1742437151304,0.78952,2026.1,2026.0,3.281]
[1742437151612,2.11212,2026.1,2026.0,3.281]
[1742437152205,2.11212,2026.1,2026.0,4.07055]
[1742437152803,3.2078,2026.3,2026.2,0.78948]
[1742437153006,4.591,2026.3,2026.0,3.281]
[1742437153206,4.591,2026.3,2026.2,0.78948]
[1742437153408,0.00740649,2026.4,2026.3,0.78944]
[1742437153615,0.00740649,2026.4,2026.3,2.18314]
[1742437153911,0.79680649,2026.4,2026.3,2.85616615]
[1742437154312,0.79680649,2026.4,2026.3,2.18314]
[1742437154514,0.00740649,2026.4,2026.3,2.18314]
[1742437156807,0.00740649,2026.4,2026.3,2.85484369]
[1742437157013,3.2078,2026.8,2026.7,0.78928]
[1742437157314,0.78928,2026.7,2026.6,4.0693]
[1742437157513,0.78928,2026.7,2026.6,44.8693]
[1742437158813,0.78928,2026.7,2026.6,44.08]
[1742437159413,0.78928,2026.7,2026.6,3.28]
[1742437159810,0.78932,2026.6,2026.5,3.2078]
[1742437160006,2.81412,2026.6,2026.5,3.2078]
[1742437161114,2.81412,2026.6,2026.5,3.99716]
[1742437161315,2.81412,2026.6,2026.5,3.2078]
[1742437161814,0.7894,2026.4,2026.3,2.7522]
[1742437162005,0.78952,2026.1,2026.0,6.4868]
[1742437162209,0.78952,2026.1,2026.0,7.27635]
[1742437163414,2.05939,2026.2,2026.1,0.78952]
[1742437163913,0.78945,2026.3,2026.2,0.78948]
[1742437164414,1.2699,2026.4,2026.0,6.4868]
[1742437164718,1.2699,2026.2,2026.0,6.4868]
[1742437164919,2.05942,2026.2,2026.1,0.78952]
[1742437165120,0.78952,2026.1,2026.0,7.27632]
[1742437165319,2.16742,2026.1,2026.0,7.27632]
[1742437165517,1.3779,2026.1,2026.0,7.27632]
[1742437166015,2.16742,2026.1,2026.0,7.27632]
[1742437166412,1.3779,2026.1,2026.0,7.27632]
[1742437166813,1.3779,2026.1,2026.0,8.59512]
[1742437167722,2.16742,2026.1,2026.0,8.59512]
[1742437168022,1.3779,2026.1,2026.0,8.59512]
[1742437168323,2.16742,2026.1,2026.0,8.59512]
[1742437168524,1.3779,2026.1,2026.0,8.59512]
[1742437168710,2.16742,2026.1,2026.0,7.8056]
[1742437169116,2.16742,2026.1,2026.0,8.59515]
[1742437169720,1.3779,2026.1,2026.0,8.59515]
[1742437169925,3.9702,2026.5,2026.3,0.78943]
[1742437170126,1.3571,2026.4,2026.3,0.78944]
[1742437170627,3.2078,2026.6,2026.5,0.78936]
[1742437170924,0.78929,2026.7,2026.6,0.78932]
[1742437171333,2.13637,2026.8,2026.7,0.78928]
[1742437172024,0.78928,2026.7,2026.6,1.48519]
[1742437172328,2.17198,2026.7,2026.6,0.6959]
[1742437173231,2.17198,2026.7,2026.6,1.48522]
[1742437174124,1.3827,2026.7,2026.6,1.48522]
[1742437174929,0.00740649,2026.9,2026.8,0.78924]
[1742437175332,0.00740649,2026.9,2026.7,4.06827]
[1742437175631,0.78924,2026.8,2026.7,3.279]
[1742437176028,0.78932,2026.6,2026.5,3.279]
[1742437176232,0.78932,2026.6,2026.5,4.06834]
[1742437177834,0.78932,2026.6,2026.5,3.279]
[1742437178131,1.43492,2026.6,2026.5,4.06836]
[1742437179243,1.43492,2026.6,2026.3,40.8]
[1742437179244,0.7894,2026.4,2026.3,3.278]
[1742437179830,2.1286,2026.4,2026.3,3.278]
[1742437180027,2.1286,2026.4,2026.3,4.06744]
[1742437180227,2.1286,2026.4,2026.3,7.27524]
[1742437182952,1.3392,2026.4,2026.3,7.27524]
[1742437184250,1.97313,2026.8,2026.3,7.27524]
[1742437184251,0.6357,2026.7,2026.6,0.78932]
[1742437184453,1.2807,2026.7,2026.6,0.78932]
[1742437186648,2.06998,2026.7,2026.6,0.78932]
[1742437186849,2.06998,2026.7,2026.6,2.15612]
[1742437187059,0.78932,2026.6,2026.5,4.76773]
[1742437187251,2.12422,2026.6,2026.5,6.13453]
[1742437189557,1.3349,2026.6,2026.5,6.13453]
[1742437189761,1.3349,2026.6,2026.5,6.80838108]
[1742437189961,1.3349,2026.6,2026.5,6.80837576]
[1742437190363,0.78927,2026.8,2026.7,0.78928]
[1742437190564,2.15667,2026.8,2026.7,0.78928]
[1742437191065,2.15667,2026.8,2026.7,1.46228]
[1742437191565,1.3674,2026.8,2026.7,1.46228]
[1742437191861,1.3674,2026.8,2026.7,4.74028]
[1742437192365,1.3674,2026.8,2026.7,6.06438]
[1742437193654,3.2078,2027.3,2027.1,0.7891]
[1742437193863,1.3956,2027.2,2027.1,0.7891]
[1742437196159,0.6583,2027.6,2027.1,0.7891]
[1742437196160,22.92726142,2028.7,2027.3,3.2078]
[1742437196464,1.342,2028.3,2028.2,0.7887]
[1742437196661,2.13066,2028.3,2028.2,3.2078]
[1742437198168,5.40766,2028.3,2028.2,3.2078]
[1742437198468,0.78874,2028.1,2028.0,0.00740649]
[1742437199267,2.17774,2028.1,2028.0,0.00740649]
[1742437200368,5.45474,2028.1,2028.0,0.00740649]
[1742437200567,0.78878,2028.0,2027.9,3.2078]
[1742437200761,2.17778,2028.0,2027.9,3.2078]
[1742437201865,4.67778,2028.0,2027.9,2.12899895]
[1742437202061,0.78885,2027.8,2027.7,0.00740649]
[1742437202254,4.06485,2027.8,2027.7,0.00740649]
[1742437202760,4.76035,2027.8,2027.7,0.00740649]
[1742437204769,1.48435,2027.8,2027.7,0.00740649]
[1742437205373,3.53485,2027.8,2027.7,0.00740649]
[1742437205776,1.3983,2027.8,2027.7,0.79629649]
[1742437206075,2.18715,2027.8,2027.7,0.79629649]
[1742437206871,1.3983,2027.8,2027.7,0.79629649]
[1742437207064,2.18715,2027.8,2027.7,0.00740649]
[1742437209575,2.18715,2027.8,2027.7,0.79629649]
[1742437209770,1.3983,2027.8,2027.7,0.79629649]
[1742437209977,2.18715,2027.8,2027.7,0.79629649]
[1742437210170,2.18715,2027.8,2027.7,3.37509649]
[1742437210377,1.3983,2027.8,2027.7,3.37509649]
[1742437210778,2.18715,2027.8,2027.7,3.37509649]
[1742437210978,1.3983,2027.8,2027.7,3.91770834]
[1742437211181,1.3983,2027.8,2027.7,3.91774945]
[1742437212873,0.7888,2028.0,2027.9,0.78881]
[1742437213073,2.0591,2028.0,2027.9,0.78881]
[1742437213274,1.2703,2028.0,2027.8,5.34533]
[1742437213474,1.2703,2028.0,2027.9,2.13751]
[1742437213673,0.78872,2028.2,2028.0,0.78876]
[1742437213873,2.19214,2028.1,2028.0,2.10736]
[1742437214072,2.19214,2028.1,2028.0,5.31516]
[1742437214777,2.19214,2028.1,2028.0,4.5264]
[1742437215081,2.19214,2028.1,2028.0,3.2078]
[1742437215676,2.19214,2028.1,2028.0,3.99658]
[1742437216077,2.19214,2028.1,2028.0,3.2078]
[1742437216873,2.19214,2028.1,2028.0,4.5341]
[1742437219085,2.19214,2028.1,2028.0,3.2078]
[1742437222778,0.78885,2027.8,2027.7,0.65040649]
[1742437222981,0.78885,2027.8,2027.7,0.00740649]
[1742437223177,4.06485,2027.8,2027.7,0.00740649]
[1742437225281,12.52485,2027.8,2027.7,0.00740649]
[1742437225487,12.52485,2027.8,2027.3,3.2078]
[1742437225488,0.78901,2027.4,2027.3,3.2078]
[1742437225686,0.78901,2027.4,2027.3,3.75353837]
[1742437226788,4.06501,2027.4,2027.3,3.75353837]
[1742437227178,4.06501,2027.4,2027.3,3.75362178]
[1742437227789,0.78909,2027.2,2027.1,1.39360649]
[1742437227990,0.78909,2027.2,2027.1,3.76086051]
[1742437228587,4.06509,2027.2,2027.1,0.55306051]
[1742437228786,4.06509,2027.2,2027.1,0.00740649]
[1742437228989,6.66069,2027.2,2027.1,0.00740649]
[1742437231485,9.16069,2027.2,2027.1,0.00740649]
[1742437231991,6.66069,2027.2,2027.1,0.00740649]
[1742437233390,9.24438685,2027.2,2027.1,0.00740649]
[1742437234084,9.16069,2027.2,2027.1,0.00740649]
[1742437234287,9.24439632,2027.2,2027.1,0.00740649]
[1742437234592,6.66069,2027.2,2027.1,0.00740649]
[1742437235091,3.38469,2027.2,2027.1,0.00740649]
[1742437235386,6.66069,2027.2,2027.1,0.00740649]
[1742437235784,3.38469,2027.2,2027.1,0.00740649]
[1742437235983,5.37139,2027.2,2027.1,0.00740649]
[1742437236685,5.37139,2027.2,2027.1,0.66270649]
[1742437236886,5.37139,2027.2,2027.1,1.33120649]
[1742437237483,5.96740649,2027.4,2027.1,1.33120649]
[1742437237793,6.75643649,2027.4,2027.2,2.06476]
[1742437237993,6.75643649,2027.4,2027.3,1.3462]
[1742437238196,0.00740649,2027.4,2027.3,1.3462]
[1742437238493,0.00740649,2027.4,2027.3,2.13525]
[1742437239000,0.00740649,2027.4,2027.3,2.67879914]
[1742437239182,0.00740649,2027.4,2027.3,2.13525]
[1742437239799,0.00740649,2027.4,2027.3,2.67883981]
[1742437240889,0.00740649,2027.4,2027.3,2.67885158]
[1742437242399,0.79641649,2027.4,2027.3,1.88980158]
[1742437242597,0.79641649,2027.4,2027.3,2.67885158]
[1742437242791,0.79641649,2027.4,2027.3,1.88980158]
[1742437243200,0.00740649,2027.4,2027.3,2.67885158]
[1742437243390,3.2078,2027.9,2027.7,0.78889]
[1742437243391,0.78883,2027.9,2027.7,0.78889]
[1742437243596,0.78881,2028.0,2027.8,3.57813]
[1742437243798,0.78881,2028.0,2027.9,4.6132]
[1742437245392,0.79612649,2028.2,2028.0,0.78877]
[1742437245588,0.79612649,2028.2,2028.1,1.3195]
[1742437245792,0.79612649,2028.2,2028.1,1.86318143]
[1742437246198,0.00740649,2028.2,2028.1,2.65188203]
[1742437246506,0.00740649,2028.2,2028.1,1.86314203]
[1742437246796,0.79610649,2028.2,2028.1,1.86314203]
[1742437247000,2.13620649,2028.2,2028.1,1.3195]
[1742437247398,0.78878,2028.0,2027.9,3.2078]
[1742437247597,0.78878,2028.0,2027.9,4.5954]
[1742437248606,0.78877,2028.1,2027.9,5.13885818]
[1742437248795,1.3384,2028.0,2027.9,4.5954]
[1742437248990,1.3384,2028.0,2027.9,5.13885194]
[1742437249207,2.12718,2028.0,2027.9,5.13885194]
[1742437250005,2.12718,2028.0,2027.9,4.5954]
[1742437250990,5.40318,2028.0,2027.9,3.2078]
[1742437251198,0.78881,2027.9,2027.8,1.3839]
[1742437251398,2.07911,2027.9,2027.8,1.3839]
[1742437257107,2.07911,2027.9,2027.8,0.6943]
[1742437257708,2.07911,2027.9,2027.8,1.9722]
[1742437258414,0.78885,2027.8,2027.7,0.6737]
[1742437258612,2.14495,2027.8,2027.7,1.9516]
[1742437260411,0.78889,2027.7,2027.6,3.8462]
[1742437260708,2.09409,2027.7,2027.6,3.8462]
[1742437261215,1.3052,2027.7,2027.6,3.8462]
[1742437261510,1.3052,2027.7,2027.6,4.39016295]
[1742437261511,2.09409,2027.7,2027.6,4.39016295]
[1742437261711,2.09409,2027.7,2027.6,5.71596295]
[1742437263314,2.09409,2027.7,2027.6,6.50489295]
[1742437263515,2.09409,2027.7,2027.6,5.71596295]
[1742437265818,2.09409,2027.7,2027.6,3.75176295]
[1742437266113,2.09409,2027.7,2027.6,3.75329717]
[1742437267908,2.09409,2027.7,2027.6,4.39664313]
[1742437268115,2.09409,2027.7,2027.6,4.39704326]
[1742437268419,3.275,2028.0,2027.6,4.39704326]
[1742437268613,2.11138,2027.8,2027.7,0.5458973]
[1742437268814,2.11138,2027.8,2027.7,1.8709973]
[1742437270112,0.78897,2027.5,2027.4,0.6852]
[1742437270317,0.78901,2027.4,2027.3,3.2078]
[1742437270519,2.11151,2027.4,2027.3,3.2078]
[1742437278028,1.3225,2027.4,2027.1,0.67600649]
[1742437278231,0.78909,2027.2,2027.1,0.00740649]
[1742437278627,2.09039,2027.2,2027.1,0.00740649]
[1742437282625,10.55039,2027.2,2027.1,6.49e-06]
[1742437282826,0.78928,2026.7,2026.6,4.5675]
[1742437283522,2.06228,2026.7,2026.6,4.5675]
[1742437284926,2.06228,2026.7,2026.6,1.3597]
[1742437290825,0.78928,2026.7,2026.6,1.3597]
[1742437291330,0.78928,2026.7,2026.6,1.89718336]
[1742437291728,0.78928,2026.7,2026.6,1.89722635]
[1742437292038,0.78928,2026.7,2026.6,1.89721824]
[1742437292426,0.78928,2026.7,2026.6,1.3597]
[1742437293833,4.06528,2026.7,2026.6,1.3597]
[1742437298133,0.78936,2026.5,2026.4,1.29820649]
[1742437298443,0.78936,2026.5,2026.4,1.8365942]
[1742437299445,0.78936,2026.5,2026.4,3.1702942]
[1742437300134,0.78936,2026.5,2026.4,3.1706132]
[1742437301641,0.78936,2026.5,2026.4,1.1851132]
[1742437301941,4.74406,2026.5,2026.4,0.00740649]
[1742437302137,5.38556,2026.5,2026.4,0.00740649]
[1742437303136,5.38556,2026.5,2026.4,6.49e-06]
[1742437303137,13.84556,2026.5,2026.4,6.49e-06]
[1742437303334,13.9291236,2026.5,2026.4,6.49e-06]
[1742437304341,13.92912109,2026.5,2026.4,6.49e-06]
[1742437306148,13.9291343,2026.5,2026.4,6.49e-06]
[1742437307947,13.92915064,2026.5,2026.4,6.49e-06]
[1742437309547,13.92915469,2026.5,2026.4,6.49e-06]
[1742437309848,11.42915469,2026.5,2026.4,6.49e-06]
[1742437310054,13.92915469,2026.5,2026.4,6.49e-06]
[1742437313152,13.92915674,2026.5,2026.4,6.49e-06]
[1742437314742,11.42915674,2026.5,2026.4,6.49e-06]
[1742437314943,11.429154,2026.5,2026.4,6.49e-06]
[1742437316651,11.42913564,2026.5,2026.4,6.49e-06]
[1742437320250,3.94721,2026.3,2025.0,49.66886]
[1742437320452,0.78963,2025.8,2025.7,1.3477]
[1742437320850,4.06563,2025.8,2025.7,1.3477]
[1742437321252,1.97438,2025.5,2025.1,40.8]
[1742437321556,3.94838,2025.7,2025.0,3.2078]
[1742437321557,7.27359,2025.4,2025.3,0.6948]
[1742437321754,0.78983,2025.3,2025.2,0.6529]
[1742437321958,0.78987,2025.2,2025.1,0.00740649]
[1742437322159,4.06587,2025.2,2025.1,0.00740649]
[1742437322357,5.51597824,2025.2,2025.1,0.00740649]
[1742437322964,5.43247,2025.2,2025.1,0.00740649]
[1742437323252,5.51598392,2025.2,2025.1,0.00740649]
[1742437323453,5.43247,2025.2,2025.1,0.00740649]
[1742437323655,4.06587,2025.2,2025.1,0.00740649]
[1742437327159,0.78987,2025.2,2025.1,0.00740649]
[1742437327755,0.78987,2025.2,2025.1,0.70210649]
[1742437328463,0.78987,2025.2,2025.1,41.50210649]
[1742437331062,9.1678,2025.4,2025.1,41.50210649]
[1742437331063,5.96,2025.4,2025.1,41.50210649]
[1742437331259,6.74981,2025.4,2025.2,5.2828]
[1742437331468,0.78979,2025.4,2025.3,1.3734]
[1742437333058,3.99759,2025.4,2025.3,1.3734]
[1742437333259,5.30709,2025.4,2025.3,1.3734]
[1742437334856,3.99759,2025.4,2025.3,1.3734]
[1742437336369,5.31599,2025.4,2025.3,1.3734]
[1742437340364,0.78983,2025.3,2025.2,0.7016]
[1742437340565,5.42503,2025.3,2025.2,0.7016]
[1742437341069,5.42503,2025.3,2025.2,2.0741]
[1742437342768,5.42503,2025.3,2025.1,0.00740649]
[1742437342769,0.78987,2025.2,2025.1,0.00740649]
[1742437342969,2.84397,2025.2,2025.1,0.00740649]
[1742437344372,0.79014,2024.5,2024.4,0.6397]
[1742437344576,0.79014,2024.5,2024.4,2.55867389]
[1742437344778,0.79014,2024.5,2024.4,2.0198]
[1742437344968,2.16804,2024.5,2024.4,2.0198]
[1742437345164,2.16804,2024.5,2024.4,2.55869351]
[1742437345368,2.16804,2024.5,2024.4,2.0198]
[1742437346271,2.16804,2024.5,2024.4,2.55889155]
[1742437346465,2.16804,2024.5,2024.4,2.0198]
[1742437347277,2.16804,2024.5,2024.4,2.55898296]
[1742437349280,3.276,2024.6,2024.4,2.55928518]
[1742437349579,4.0661,2024.6,2024.5,1.88298518]
[1742437349770,0.7901,2024.6,2024.5,1.88298518]
[1742437349983,3.276,2024.6,2024.5,1.88298518]
[1742437350171,4.0661,2024.6,2024.5,1.88298518]
[1742437351079,0.7901,2024.6,2024.5,1.88298518]
[1742437351480,9.1678,2024.9,2024.5,1.88298518]
[1742437351668,9.236,2024.9,2024.7,3.2078]
[1742437351869,10.02598,2024.9,2024.8,3.13768518]
[1742437352082,6.74998,2024.9,2024.8,3.13768518]
[1742437352281,6.74998,2024.9,2024.8,2.5982]
[1742437352582,6.74998,2024.9,2024.8,3.137482]
[1742437353483,6.74998,2024.9,2024.8,3.13748315]
[1742437354780,5.96,2024.9,2024.8,3.92750315]
[1742437355081,6.74998,2024.9,2024.8,3.13748315]
[1742437355277,6.74998,2024.9,2024.8,3.13747056]
[1742437355587,0.78998,2024.9,2024.8,3.13747056]
[1742437355880,3.276,2025.1,2024.8,3.13747056]
[1742437356073,1.3547,2025.2,2025.0,3.2078]
[1742437356277,2.14457,2025.2,2025.1,1.366]
[1742437356480,0.78987,2025.2,2025.1,2.69514498]
[1742437356675,3.276,2025.3,2025.2,0.78987]
[1742437356676,1.3547,2025.3,2025.2,0.78987]
[1742437356876,4.06581,2025.4,2025.2,3.33847237]
[1742437357076,0.78981,2025.4,2025.3,1.93498935]
[1742437357379,0.79717649,2025.5,2025.3,3.40271084]
[1742437357580,0.79717649,2025.5,2025.4,1.3958]
[1742437358275,0.00740649,2025.5,2025.4,2.72459845]
[1742437360085,0.00740649,2025.5,2025.4,43.52459845]
[1742437360376,0.79715649,2025.5,2025.4,1.3958]
[1742437360579,1.41070649,2025.5,2025.4,1.3958]
[1742437360976,2.20045649,2025.5,2025.4,1.3958]
[1742437361188,1.41070649,2025.5,2025.4,1.3958]
[1742437361383,0.00740649,2025.5,2025.4,2.72431594]
[1742437362295,3.276,2025.8,2025.7,0.78967]
[1742437362484,0.78964,2025.8,2025.5,1.3633]
[1742437362794,2.19292,2025.9,2025.7,0.78967]
[1742437362995,2.19292,2025.9,2025.8,1.3633]
[1742437365795,1.4033,2025.9,2025.8,1.3633]
[1742437365994,2.19289,2025.9,2025.8,1.3633]
[1742437366286,1.4033,2025.9,2025.8,1.3633]
[1742437366592,2.19289,2025.9,2025.8,1.3633]
[1742437368781,1.4033,2025.9,2025.8,1.3633]
[1742437368982,2.19289,2025.9,2025.8,1.3633]
[1742437369989,1.4033,2025.9,2025.3,0.7898]
[1742437370190,3.99751,2025.7,2025.4,2.0335]
[1742437370389,2.15811,2025.6,2025.5,1.3407]
[1742437370592,2.82601,2025.6,2025.5,1.3407]
[1742437370898,2.0363,2025.6,2025.5,1.3407]
[1742437371096,2.0363,2025.6,2025.5,2.13045]
[1742437371097,1.3684,2025.6,2025.5,2.13045]
[1742437371297,3.275,2025.8,2025.6,0.78971]
[1742437371499,4.06463,2025.8,2025.7,1.3407]
[1742437372184,3.275,2025.8,2025.5,3.2078]
[1742437372389,0.78969,2025.7,2025.6,1.3882]
[1742437372694,4.06466,2025.8,2025.6,1.3882]
[1742437373199,4.06467,2025.8,2025.6,1.3882]
[1742437374095,3.275,2025.8,2025.6,1.3882]
[1742437374300,0.78967,2025.7,2025.6,1.3882]
[1742437374502,0.78971,2025.6,2025.4,2.081]
[1742437374698,0.681,2025.6,2025.5,1.3882]
[1742437375401,1.47071,2025.6,2025.5,1.3882]
[1742437375598,0.78975,2025.5,2025.4,0.6928]
[1742437375796,0.78975,2025.5,2025.3,1.4784]
[1742437375797,0.78983,2025.3,2025.2,0.00496836]
[1742437375999,4.06383,2025.3,2025.2,0.00496836]
[1742437376202,4.06383,2025.3,2024.9,3.2078]
[1742437376203,0.78994,2025.0,2024.9,3.2078]
[1742437376397,4.06394,2025.0,2024.9,3.2078]
[1742437376701,3.274,2025.0,2024.6,4.5135]
[1742437377090,0.79002,2024.8,2024.7,1.3057]
[1742437377295,4.06402,2024.8,2024.6,3.2078]
[1742437377596,4.06402,2024.8,2024.6,4.5135]
[1742437377902,0.79006,2024.7,2024.6,3.2078]
[1742437378401,4.06405,2024.8,2024.6,3.2078]
[1742437378601,3.274,2024.8,2024.6,3.9979]
[1742437378797,3.274,2024.8,2024.6,5.2752]
[1742437379002,3.274,2024.8,2024.7,1.2773]
[1742437379502,4.06402,2024.8,2024.7,1.2773]
[1742437380605,0.79006,2024.7,2024.6,3.2078]
[1742437381604,0.7901,2024.6,2024.5,0.00740649]
[1742437381801,5.3805,2024.6,2024.5,0.00740649]
[1742437382992,4.5904,2024.6,2024.2,3.2078]
[1742437383197,0.79022,2024.3,2024.2,3.2078]
[1742437383408,4.06522,2024.3,2024.2,3.2078]
[1742437384205,3.275,2024.3,2024.2,3.2078]
[1742437384501,4.06522,2024.3,2024.2,3.2078]
[1742437384703,3.275,2024.3,2024.2,3.2078]
[1742437385190,4.06522,2024.3,2024.2,3.2078]
[1742437385904,0.79016,2024.5,2024.2,3.2078]
[1742437386204,3.2078,2024.7,2024.2,5.82958]
[1742437386406,3.275,2024.8,2024.7,0.79006]
[1742437386798,4.06503,2024.8,2024.5,3.99791]
[1742437386998,4.6243,2024.8,2024.5,3.99791]
[1742437387301,4.6243,2024.8,2024.5,3.99794]
[1742437387801,0.79009,2024.7,2024.5,3.99794]
[1742437388001,2.10019,2024.7,2024.5,3.99794]
[1742437388192,0.79014,2024.5,2024.4,0.79018]
[1742437388393,1.3101,2024.7,2024.3,3.9286]
[1742437388605,2.10019,2024.7,2024.5,3.99792]
[1742437389004,0.7901,2024.6,2024.5,3.2078]
[1742437389205,2.1002,2024.6,2024.5,3.2078]
[1742437389511,1.3101,2024.6,2024.5,3.99794]
[1742437389704,4.06504,2024.8,2024.6,0.79008]
[1742437389905,0.79004,2024.8,2024.7,0.7043]
[1742437390102,0.79004,2024.8,2024.7,1.49436]
[1742437390505,0.79004,2024.8,2024.7,0.7043]
[1742437391206,2.10124,2024.8,2024.7,0.7043]
[1742437391409,2.10124,2024.8,2024.7,1.49436]
[1742437391910,2.10124,2024.8,2024.7,0.7043]
[1742437393605,2.10124,2024.8,2024.7,1.49436]
[1742437394212,2.10124,2024.8,2024.7,0.7043]
[1742437394908,1.3112,2024.8,2024.7,1.49436]
[1742437395113,4.06502,2024.9,2024.8,0.79002]
[1742437395313,5.36282,2024.9,2024.8,0.79002]
[1742437395999,0.79002,2024.8,2024.7,1.49433]
[1742437396905,2.10622,2024.8,2024.7,1.49436]
[1742437397102,0.79006,2024.7,2024.6,1.4065]
[1742437397411,0.79006,2024.7,2024.6,2.1966]
[1742437397412,2.10626,2024.7,2024.6,2.1966]
[1742437398511,2.10626,2024.7,2024.6,1.4065]
[1742437399716,2.10626,2024.7,2024.6,2.1966]
[1742437400401,2.10626,2024.7,2024.6,1.4065]
[1742437402517,0.7901,2024.6,2024.5,3.873]
[1742437402712,2.1016,2024.6,2024.5,5.68713555]
[1742437403413,2.1016,2024.6,2024.5,6.47727555]
[1742437403617,3.85530649,2025.0,2024.5,5.68713555]
[1742437403914,3.274,2024.9,2024.8,0.79002]
[1742437404106,1.3115,2024.9,2024.8,1.32917784]
[1742437404308,4.00515649,2025.0,2024.9,0.78998]
[1742437404512,3.21520649,2025.0,2024.9,3.30003784]
[1742437404813,1.31890649,2025.0,2024.9,3.30003784]
[1742437405410,0.00740649,2025.0,2024.9,3.30003784]
[1742437405815,0.79734649,2025.0,2024.9,3.30003784]
[1742437406011,0.79734649,2025.0,2024.9,2.76088]
[1742437406316,0.00740649,2025.0,2024.9,3.30084628]
[1742437406711,0.00740649,2025.0,2024.9,6.57484628]
[1742437407714,0.00740649,2025.0,2024.9,7.2186117]
[1742437408214,0.00740649,2025.0,2024.9,7.2182584]
[1742437408710,7.27162,2025.4,2024.9,7.2182584]
[1742437409012,8.61152,2025.4,2025.3,0.78983]
[1742437409318,4.5477,2025.4,2025.3,1.32944298]
[1742437409613,1.3399,2025.4,2025.3,1.32944298]
[1742437409918,0.00740649,2025.6,2025.3,0.53961298]
[1742437410111,0.00740649,2025.6,2025.5,3.99755]
[1742437410312,0.00740649,2025.6,2025.5,4.53669055]
[1742437410617,0.00740649,2025.6,2025.5,45.99199055]
[1742437410815,0.00740649,2025.6,2025.5,47.34829055]
[1742437411415,1.34730649,2025.6,2025.5,47.34829055]
[1742437412120,1.34730649,2025.6,2025.5,47.34763822]
[1742437412312,0.00740649,2025.6,2025.5,47.34763822]
[1742437413617,0.79711649,2025.6,2025.5,5.10258822]
[1742437413920,0.00740649,2025.6,2025.5,5.89201605]
[1742437414418,1.35060649,2025.6,2025.5,5.89201605]
[1742437415915,1.35060649,2025.6,2025.5,5.8919121]
[1742437416719,1.35060649,2025.6,2025.5,5.1021621]
[1742437416920,1.35060649,2025.6,2025.5,5.8919121]
[1742437417917,1.35060649,2025.6,2025.5,5.89183576]
[1742437418122,1.35060649,2025.6,2025.5,5.35385]
[1742437418417,1.35060649,2025.6,2025.5,5.89177999]
[1742437418720,1.35060649,2025.6,2025.5,5.35385]
[1742437419708,2.14031649,2025.6,2025.5,4.5641]
[1742437420315,2.14031649,2025.6,2025.5,5.35385]
[1742437420524,1.35060649,2025.6,2025.5,5.35385]
[1742437422018,1.35060649,2025.6,2025.5,2.14605]
[1742437422811,1.35060649,2025.6,2025.4,3.2078]
[1742437423116,1.35060649,2025.6,2025.1,0.00740649]
[1742437423117,0.78987,2025.2,2025.1,0.00740649]
[1742437423315,0.78987,2025.2,2025.1,1.36440649]
[1742437423518,2.7223,2025.4,2025.1,1.36440649]
[1742437423725,1.3466,2025.3,2025.2,0.78987]
[1742437423921,0.78977,2025.5,2025.4,0.78979]
[1742437424224,1.303,2025.5,2025.3,2.0701]
[1742437424522,2.09275,2025.5,2025.4,1.2803]
[1742437425926,2.09275,2025.5,2025.4,2.07009]
[1742437426226,2.09275,2025.5,2025.4,1.2803]
[1742437426428,2.09275,2025.5,2025.4,2.07009]
[1742437426629,2.09275,2025.5,2025.4,1.2803]
[1742437427030,0.78983,2025.3,2025.2,2.08257]